[Event "27th OIBM 2024"]
[Site "Gmund am Tegernsee"]
[Date "2024.10.29"]
[Round "4.2"]
[White "Costa, Leonardo"]
[Black "Safarli, Eltaj"]
[Result "0-1"]
[ECO "C61"]
[WhiteElo "2472"]
[BlackElo "2596"]
[Annotator "RC"]
[PlyCount "94"]
[EventDate "2024.09.16"]
[EventType "swiss"]
[EventCountry "GER"]
[SourceTitle "playchess.com"]
[Source "ChessBase"]
[SourceQuality "1"]
[TimeControl "40/5400+30:1800+30"]

1. e4 {[%emt 0:00:02]} e5 {[%emt 0:00:50]} 2. Nf3 {[%emt 0:00:04]} Nc6 {[%emt 0:00:36]} 3. Bb5 {[%emt 0:00:04]} Nd4 {[%emt 0:00:36]} 4. Nxd4 {[%emt 0:00:05]} exd4 {[%emt 0:00:04]} 5. O-O {[%emt 0:00:04]} Ne7 {[%emt 0:00:19]} 6. d3 {[%emt 0:05:36]} g6 {[%emt 0:00:37]} 7. c3 {[%emt 0:06:14]} c6 {[%emt 0:01:34]} 8. Bc4 {[%emt 0:00:53]} Bg7 {[%emt 0:01:19]} 9. cxd4 {[%emt 0:02:24]} d5 {[%emt 0:00:24]} 10. Bb3 {[%emt 0:10:31]} Bxd4 {[%emt 0:00:57]} 11. Nc3 {[%emt 0:00:16]} O-O {[%emt 0:00:40]} 12. Bg5 {[%emt 0:03:55]} Be6 {[%emt 0:00:43]} 13. Qf3 {[%emt 0:06:26]} Qd7 {[%emt 0:17:05]} 14. Rae1 {[%emt 0:07:57]} dxe4 {[%emt 0:16:54]} 15. Qxe4 {[%emt 0:14:15]} Rfe8 {[%emt 0:04:32]} 16. Bxe6 {[%emt 0:03:48]} fxe6 {[%emt 0:00:06]} 17. Qxe6+ {[%emt 0:01:52]} Qxe6 {[%emt 0:00:04]} 18. Rxe6 {[%emt 0:00:03]} Nd5 {[%emt 0:00:59]} 19. Rxe8+ {[%emt 0:06:09]} Rxe8 {[%emt 0:00:09]} 20. Ne4 {[%emt 0:00:03]} Nb4 {[%emt 0:03:43]} 21. Nf6+ {[%emt 0:15:12]} Bxf6 {[%emt 0:00:15]} 22. Bxf6 {[%emt 0:00:02]} Nxa2 {[%emt 0:03:02]} 23. Rd1 {[%emt 0:03:23]} Re2 {[%emt 0:09:25]} 24. g3 {[%emt 0:02:59]} a6 {[%emt 0:04:31]} 25. Kg2 {[%emt 0:02:59]} Rc2 {[%emt 0:06:23]} 26. Kf3 {[%emt 0:00:31]} Nb4 {[%emt 0:01:16]} 27. Bc3 {[%emt 0:00:24]} Nd5 {[%emt 0:00:14]} 28. Rd2 {[%emt 0:00:05]} Rc1 {[%emt 0:00:24]} 29. Bd4 {[%emt 0:01:03]} a5 {[%emt 0:01:53]} 30. Ke2 {[%emt 0:01:05]} c5 {[%emt 0:07:00]} 31. Be5 {[%emt 0:00:30]} Kf7 {[%emt 0:00:18]} 32. Rd1 {[%emt 0:00:56]} Rxd1 {[%emt 0:00:05]} 33. Kxd1 {[%emt 0:00:03]} Ke6 {[%emt 0:00:07]} 34. Bb8 {[%emt 0:01:06]} Nb4 {[%emt 0:03:17]} 35. Kd2 {[%emt 0:00:35]} a4 {[%emt 0:01:08]} 36. g4 {[%emt 0:01:40]} Nc6 {[%emt 0:00:43]} 37. Bg3 {[%emt 0:00:12]} b5 {[%emt 0:00:33]} 38. f4 {[%emt 0:00:21]} Nd4 {[%emt 0:00:29]} 39. h3 {[%emt 0:01:14]} Kd5 {[%emt 0:02:52]} 40. Bf2 {[%emt 0:00:24]} b4 {[%emt 0:00:03]} 41. Bxd4 {[%emt 0:06:27]} Kxd4 {[%emt 0:00:40]} 42. Kc2 {[%emt 0:00:11]} h5 {[%emt 0:05:25]} 43. Kc1 {[%emt 0:19:49]} h4 {[%emt 0:02:44]} 44. Kb1 {[%emt 0:00:36]} c4 {[%emt 0:06:21]} 45. f5 {[%emt 0:00:04]} gxf5 {[%emt 0:00:30]} 46. gxf5 {[%emt 0:00:06]} cxd3 {[%emt 0:02:07]} 47. f6 {[%emt 0:00:03]} b3 {[%emt 0:00:14]} 0-1

[Event "27th OIBM 2024"]
[Site "Gmund am Tegernsee"]
[Date "2024.10.29"]
[Round "4.3"]
[White "Karthik Venkataraman"]
[Black "Deuer, Marius"]
[Result "0-1"]
[ECO "B12"]
[WhiteElo "2581"]
[BlackElo "2477"]
[Annotator "RC"]
[PlyCount "118"]
[EventDate "2024.09.16"]
[EventType "swiss"]
[EventCountry "GER"]
[SourceTitle "playchess.com"]
[Source "ChessBase"]
[SourceQuality "1"]
[TimeControl "40/5400+30:1800+30"]

1. e4 {[%emt 0:00:08]} c6 {[%emt 0:00:06]} 2. d4 {[%emt 0:00:06]} d5 {[%emt 0:00:05]} 3. e5 {[%emt 0:00:05]} Bf5 {[%emt 0:00:05]} 4. h4 {[%emt 0:00:04]} h5 {[%emt 0:00:04]} 5. c4 {[%emt 0:00:04]} e6 {[%emt 0:00:22]} 6. Nc3 {[%emt 0:00:06]} Ne7 {[%emt 0:00:37]} 7. Nge2 {[%emt 0:00:07]} Nd7 {[%emt 0:00:06]} 8. Ng3 {[%emt 0:00:05]} Bg6 {[%emt 0:00:04]} 9. Bg5 {[%emt 0:00:06]} Qb6 {[%emt 0:00:09]} 10. Rc1 {[%emt 0:00:06]} Qxb2 {[%emt 0:01:41]} 11. Bd3 {[%emt 0:00:06]} dxc4 {[%emt 0:00:04]} 12. Bxg6 {[%emt 0:00:07]} Nxg6 {[%emt 0:00:03]} 13. O-O {[%emt 0:00:09]} Qa3 {[%emt 0:00:55]} 14. Re1 {[%emt 0:00:05]} Nb6 {[%emt 0:20:20]} 15. Re3 {[%emt 0:00:05]} Qa5 {[%emt 0:03:02]} 16. Rb1 {[%emt 0:00:07]} Be7 {[%emt 0:09:39]} 17. Bxe7 {[%emt 0:00:10]} Nxe7 {[%emt 0:11:39]} 18. Nce4 {[%emt 0:08:56]} O-O-O {[%emt 0:08:29]} 19. Nd6+ {[%emt 0:27:03]} Rxd6 {[%emt 0:01:38]} 20. exd6 {[%emt 0:00:09]} Ned5 {[%emt 0:00:49]} 21. Rf3 {[%emt 0:00:16]} Nf6 {[%emt 0:06:27]} 22. Qc1 {[%emt 0:00:34]} Qd5 {[%emt 0:04:53]} 23. Qg5 {[%emt 0:01:59]} Rg8 {[%emt 0:03:21]} 24. Ne2 {[%emt 0:15:58]} Nbd7 {[%emt 0:07:06]} 25. Qf4 {[%emt 0:01:04]} g5 {[%emt 0:03:37]} 26. hxg5 {[%emt 0:01:46]} Qxg5 {[%emt 0:00:43]} 27. Rg3 {[%emt 0:13:13]} Qxf4 {[%emt 0:06:12]} 28. Rxg8+ {[%emt 0:00:10]} Nxg8 {[%emt 0:00:02]} 29. Nxf4 {[%emt 0:00:05]} Ngf6 {[%emt 0:00:04]} 30. f3 {[%emt 0:00:10]} b5 {[%emt 0:01:08]} 31. Kf2 {[%emt 0:00:12]} Nb6 {[%emt 0:02:40]} 32. Rh1 {[%emt 0:02:21]} Kd7 {[%emt 0:02:13]} 33. Nxh5 {[%emt 0:01:53]} Nxh5 {[%emt 0:00:36]} 34. Rxh5 {[%emt 0:00:02]} Kxd6 {[%emt 0:00:08]} 35. Rh7 {[%emt 0:00:07]} b4 {[%emt 0:00:58]} 36. Ke2 {[%emt 0:01:21]} Nd5 {[%emt 0:01:16]} 37. Rxf7 {[%emt 0:04:44]} Nc3+ {[%emt 0:03:46]} 38. Kd2 {[%emt 0:00:05]} Nxa2 {[%emt 0:01:30]} 39. Kc2 {[%emt 0:00:04]} a5 {[%emt 0:02:15]} 40. Ra7 {[%emt 0:00:03]} b3+ {[%emt 0:01:04]} 41. Kb2 {[%emt 0:30:05]} c5 {[%emt 0:08:37]} 42. dxc5+ {[%emt 0:00:00]} Kxc5 {[%emt 0:00:55]} 43. Rxa5+ {[%emt 0:03:17]} Kb4 {[%emt 0:14:40]} 44. Rxa2 {[%emt 0:00:11]} bxa2 {[%emt 0:00:59]} 45. g4 {[%emt 0:00:06]} a1=Q+ {[%emt 0:00:30]} 46. Kxa1 {[%emt 0:00:05]} Kc3 {[%emt 0:00:04]} 47. g5 {[%emt 0:00:04]} Kd2 {[%emt 0:00:28]} 48. g6 {[%emt 0:00:04]} c3 {[%emt 0:00:05]} 49. g7 {[%emt 0:00:03]} c2 {[%emt 0:00:04]} 50. g8=Q {[%emt 0:00:06]} c1=Q+ {[%emt 0:00:06]} 51. Ka2 {[%emt 0:00:03]} Qc4+ {[%emt 0:01:06]} 52. Kb2 {[%emt 0:01:01]} Qb4+ {[%emt 0:04:24]} 53. Ka2 {[%emt 0:00:10]} Kc3 {[%emt 0:00:32]} 54. Qg7+ {[%emt 0:05:05]} Qd4 {[%emt 0:00:38]} 55. Qb7 {[%emt 0:00:07]} Qa4+ {[%emt 0:00:28]} 56. Kb1 {[%emt 0:00:05]} Qb3+ {[%emt 0:00:10]} 57. Qxb3+ {[%emt 0:00:05]} Kxb3 {[%emt 0:00:06]} 58. f4 {[%emt 0:00:03]} Kc3 {[%emt 0:00:28]} 59. Kc1 {[%emt 0:00:09]} Kd3 {[%emt 0:00:25]} 0-1

[Event "27th OIBM 2024"]
[Site "Gmund am Tegernsee"]
[Date "2024.10.29"]
[Round "4.4"]
[White "Ongut, Tamas Gunes"]
[Black "Piorun, Kacper"]
[Result "1/2-1/2"]
[ECO "B12"]
[WhiteElo "2224"]
[BlackElo "2581"]
[Annotator "RC"]
[PlyCount "58"]
[EventDate "2024.09.16"]
[EventType "swiss"]
[EventCountry "GER"]
[SourceTitle "playchess.com"]
[Source "ChessBase"]
[SourceQuality "1"]
[TimeControl "40/5400+30:1800+30"]

1. e4 {[%emt 0:00:11]} c6 {[%emt 0:00:09]} 2. d4 {[%emt 0:00:09]} d5 {[%emt 0:00:05]} 3. e5 {[%emt 0:00:29]} Bf5 {[%emt 0:00:06]} 4. h4 {[%emt 0:00:36]} a6 {[%emt 0:00:06]} 5. h5 {[%emt 0:00:50]} Qc7 {[%emt 0:09:11]} 6. Nc3 {[%emt 0:08:37]} Bc8 {[%emt 0:07:20]} 7. Bd3 {[%emt 0:12:46]} e6 {[%emt 0:00:09]} 8. Nce2 {[%emt 0:00:18]} c5 {[%emt 0:02:13]} 9. c3 {[%emt 0:00:09]} Nc6 {[%emt 0:03:16]} 10. Nf3 {[%emt 0:03:05]} f6 {[%emt 0:04:08]} 11. Bf4 {[%emt 0:05:12]} cxd4 {[%emt 0:14:55]} 12. cxd4 {[%emt 0:02:30]} Bb4+ {[%emt 0:05:52]} 13. Kf1 {[%emt 0:00:37]} Qf7 {[%emt 0:03:43]} 14. Rh3 {[%emt 0:02:17]} f5 {[%emt 0:04:10]} 15. Rc1 {[%emt 0:02:22]} h6 {[%emt 0:02:20]} 16. Bd2 {[%emt 0:06:10]} Bxd2 {[%emt 0:03:14]} 17. Qxd2 {[%emt 0:00:10]} Nge7 {[%emt 0:00:03]} 18. Nf4 {[%emt 0:03:56]} Bd7 {[%emt 0:00:06]} 19. Kg1 {[%emt 0:02:38]} Rc8 {[%emt 0:06:46]} 20. Bb1 {[%emt 0:03:59]} Na7 {[%emt 0:04:46]} 21. Rxc8+ {[%emt 0:02:15]} Bxc8 {[%emt 0:03:13]} 22. Nh4 {[%emt 0:01:19]} Nac6 {[%emt 0:01:50]} 23. Nhg6 {[%emt 0:10:11]} Nxg6 {[%emt 0:01:41]} 24. Nxg6 {[%emt 0:00:07]} Rg8 {[%emt 0:00:02]} 25. Qc3 {[%emt 0:03:33]} Qc7 {[%emt 0:01:17]} 26. Qc5 {[%emt 0:05:13]} Qa5 {[%emt 0:00:44]} 27. Qd6 {[%emt 0:06:20]} Qd8 {[%emt 0:08:56]} 28. Qc5 {[%emt 0:00:10]} Qa5 {[%emt 0:00:09]} 29. Qd6 {[%emt 0:00:08]} Qd8 {[%emt 0:03:09]} 1/2-1/2

[Event "27th OIBM 2024"]
[Site "Gmund am Tegernsee"]
[Date "2024.10.29"]
[Round "4.5"]
[White "Jumabayev, Rinat"]
[Black "Colpe, Malte"]
[Result "1-0"]
[ECO "D35"]
[WhiteElo "2577"]
[BlackElo "2371"]
[Annotator "RC"]
[PlyCount "67"]
[EventDate "2024.09.16"]
[EventType "swiss"]
[EventCountry "GER"]
[SourceTitle "playchess.com"]
[Source "ChessBase"]
[SourceQuality "1"]
[TimeControl "40/5400+30:1800+30"]

1. c4 {[%emt 0:00:05]} e6 {[%emt 0:00:10]} 2. Nc3 {[%emt 0:00:11]} d5 {[%emt 0:00:22]} 3. d4 {[%emt 0:00:07]} Nf6 {[%emt 0:00:27]} 4. cxd5 {[%emt 0:00:05]} exd5 {[%emt 0:00:13]} 5. Bg5 {[%emt 0:00:06]} Be7 {[%emt 0:00:12]} 6. e3 {[%emt 0:00:06]} h6 {[%emt 0:00:44]} 7. Bh4 {[%emt 0:00:17]} O-O {[%emt 0:01:51]} 8. Bd3 {[%emt 0:01:29]} c6 {[%emt 0:00:51]} 9. Nge2 {[%emt 0:01:07]} Re8 {[%emt 0:08:23]} 10. O-O {[%emt 0:01:58]} Nbd7 {[%emt 0:00:50]} 11. f3 {[%emt 0:09:39]} b5 {[%emt 0:03:44]} 12. Bf2 {[%emt 0:14:21]} Bb7 {[%emt 0:15:00]} 13. Ng3 {[%emt 0:08:00]} Nb6 {[%emt 0:10:57]} 14. Rc1 {[%emt 0:06:49]} Bf8 {[%emt 0:03:47]} 15. e4 {[%emt 0:12:50]} b4 {[%emt 0:04:41]} 16. Nb1 {[%emt 0:00:23]} Nfd7 {[%emt 0:09:47]} 17. Nd2 {[%emt 0:07:37]} dxe4 {[%emt 0:03:58]} 18. fxe4 {[%emt 0:00:08]} Ne5 {[%emt 0:08:02]} 19. Bb1 {[%emt 0:03:39]} Ng6 {[%emt 0:00:42]} 20. e5 {[%emt 0:00:12]} Nd5 {[%emt 0:05:52]} 21. Nde4 {[%emt 0:01:34]} c5 {[%emt 0:11:36]} 22. Nxc5 {[%emt 0:01:07]} Bxc5 {[%emt 0:00:10]} 23. Rxc5 {[%emt 0:00:13]} Ndf4 {[%emt 0:02:30]} 24. Be4 {[%emt 0:01:41]} Bxe4 {[%emt 0:01:37]} 25. Nxe4 {[%emt 0:00:04]} Ne6 {[%emt 0:00:43]} 26. Rb5 {[%emt 0:10:17]} a5 {[%emt 0:01:07]} 27. Nd6 {[%emt 0:00:25]} Rf8 {[%emt 0:01:41]} 28. Be3 {[%emt 0:01:26]} Rb8 {[%emt 0:01:49]} 29. Rxb8 {[%emt 0:01:10]} Qxb8 {[%emt 0:00:07]} 30. Qg4 {[%emt 0:02:28]} Kh7 {[%emt 0:02:49]} 31. h4 {[%emt 0:02:05]} Qa8 {[%emt 0:00:32]} 32. h5 {[%emt 0:02:51]} Nh8 {[%emt 0:00:04]} 33. Ne4 {[%emt 0:02:20]} Qd5 {[%emt 0:00:38]} 34. Rf6 {[%emt 0:01:26]} 1-0

[Event "27th OIBM 2024"]
[Site "Gmund am Tegernsee"]
[Date "2024.10.29"]
[Round "4.6"]
[White "Stremavicius, Titas"]
[Black "Farokhi, Keyvan"]
[Result "1-0"]
[ECO "E05"]
[WhiteElo "2541"]
[BlackElo "2320"]
[Annotator "RC"]
[PlyCount "71"]
[EventDate "2024.09.16"]
[EventType "swiss"]
[EventCountry "GER"]
[SourceTitle "playchess.com"]
[Source "ChessBase"]
[SourceQuality "1"]
[TimeControl "40/5400+30:1800+30"]

1. Nf3 {[%emt 0:00:16]} Nf6 {[%emt 0:00:09]} 2. c4 {[%emt 0:00:13]} e6 {[%emt 0:00:10]} 3. g3 {[%emt 0:00:14]} d5 {[%emt 0:00:08]} 4. Bg2 {[%emt 0:00:25]} Be7 {[%emt 0:00:14]} 5. O-O {[%emt 0:01:08]} O-O {[%emt 0:00:29]} 6. d4 {[%emt 0:00:08]} dxc4 {[%emt 0:01:10]} 7. Na3 {[%emt 0:00:12]} Bxa3 {[%emt 0:00:34]} 8. bxa3 {[%emt 0:00:04]} b5 {[%emt 0:04:49]} 9. a4 {[%emt 0:00:13]} a6 {[%emt 0:00:10]} 10. Ba3 {[%emt 0:00:49]} Re8 {[%emt 0:00:41]} 11. Ne5 {[%emt 0:00:13]} Nd5 {[%emt 0:00:08]} 12. e4 {[%emt 0:00:06]} Ne7 {[%emt 0:00:19]} 13. Qh5 {[%emt 0:00:39]} Ng6 {[%emt 0:00:10]} 14. Rad1 {[%emt 0:00:55]} Bb7 {[%emt 0:00:15]} 15. axb5 {[%emt 0:30:59]} axb5 {[%emt 0:05:19]} 16. Nxg6 {[%emt 0:00:18]} hxg6 {[%emt 0:10:17]} 17. Qxb5 {[%emt 0:00:12]} Bxe4 {[%emt 0:00:44]} 18. Bxe4 {[%emt 0:00:11]} Rxa3 {[%emt 0:00:07]} 19. d5 {[%emt 0:04:24]} Qd7 {[%emt 0:23:14]} 20. Qxc4 {[%emt 0:11:49]} Qa4 {[%emt 0:01:45]} 21. Bd3 {[%emt 0:00:07]} Qxc4 {[%emt 0:13:57]} 22. Bxc4 {[%emt 0:00:35]} exd5 {[%emt 0:00:14]} 23. Rxd5 {[%emt 0:01:02]} c6 {[%emt 0:03:18]} 24. Rd6 {[%emt 0:04:16]} Rc3 {[%emt 0:02:00]} 25. Bb3 {[%emt 0:01:18]} Na6 {[%emt 0:03:24]} 26. Rfd1 {[%emt 0:04:20]} Rf8 {[%emt 0:01:35]} 27. R1d4 {[%emt 0:05:42]} Nc5 {[%emt 0:03:55]} 28. Bc4 {[%emt 0:08:03]} Rc8 {[%emt 0:09:44]} 29. Rd8+ {[%emt 0:04:19]} Rxd8 {[%emt 0:00:01]} 30. Rxd8+ {[%emt 0:00:06]} Kh7 {[%emt 0:00:06]} 31. Bxf7 {[%emt 0:00:07]} Rf3 {[%emt 0:03:22]} 32. Bg8+ {[%emt 0:00:37]} Kh6 {[%emt 0:00:02]} 33. Bc4 {[%emt 0:01:44]} Rc3 {[%emt 0:01:35]} 34. Bf7 {[%emt 0:04:28]} Rf3 {[%emt 0:01:51]} 35. h4 {[%emt 0:02:18]} Kh5 {[%emt 0:00:15]} 36. Bc4 {[%emt 0:00:46]} 1-0

[Event "27th OIBM 2024"]
[Site "Gmund am Tegernsee"]
[Date "2024.10.29"]
[Round "4.7"]
[White "Humbert, Arthur"]
[Black "Amar, Elham"]
[Result "0-1"]
[ECO "B12"]
[WhiteElo "1975"]
[BlackElo "2540"]
[Annotator "RC"]
[PlyCount "172"]
[EventDate "2024.09.16"]
[EventType "swiss"]
[EventCountry "GER"]
[SourceTitle "playchess.com"]
[Source "ChessBase"]
[SourceQuality "1"]
[TimeControl "40/5400+30:1800+30"]

1. e4 {[%emt 0:00:04]} c6 {[%emt 0:03:43]} 2. d4 {[%emt 0:00:18]} d5 {[%emt 0:00:05]} 3. e5 {[%emt 0:00:10]} Bf5 {[%emt 0:00:07]} 4. h4 {[%emt 0:00:10]} h5 {[%emt 0:00:14]} 5. Bd3 {[%emt 0:00:13]} Bxd3 {[%emt 0:00:07]} 6. Qxd3 {[%emt 0:00:11]} Qa5+ {[%emt 0:00:05]} 7. Nc3 {[%emt 0:11:20]} e6 {[%emt 0:00:29]} 8. Bd2 {[%emt 0:03:10]} Qa6 {[%emt 0:02:24]} 9. Qxa6 {[%emt 0:03:16]} Nxa6 {[%emt 0:00:15]} 10. Nce2 {[%emt 0:00:01]} c5 {[%emt 0:04:48]} 11. c3 {[%emt 0:02:15]} Ne7 {[%emt 0:02:07]} 12. Nh3 {[%emt 0:03:02]} Nf5 {[%emt 0:01:15]} 13. Ng5 {[%emt 0:00:11]} Rc8 {[%emt 0:05:58]} 14. Rh3 {[%emt 0:01:33]} Be7 {[%emt 0:02:11]} 15. Ng3 {[%emt 0:01:21]} Nxg3 {[%emt 0:00:48]} 16. Rxg3 {[%emt 0:00:09]} cxd4 {[%emt 0:05:55]} 17. cxd4 {[%emt 0:00:09]} O-O {[%emt 0:00:21]} 18. Kd1 {[%emt 0:00:57]} Rc4 {[%emt 0:02:05]} 19. Rd3 {[%emt 0:01:45]} Bxg5 {[%emt 0:01:27]} 20. hxg5 {[%emt 0:00:26]} Rfc8 {[%emt 0:01:41]} 21. Bc3 {[%emt 0:03:00]} Kh7 {[%emt 0:01:54]} 22. Kd2 {[%emt 0:03:24]} Kg6 {[%emt 0:02:39]} 23. Rf3 {[%emt 0:03:06]} b5 {[%emt 0:02:41]} 24. a3 {[%emt 0:06:02]} Nb8 25. Rh1 {[%emt 0:56:47]} a5 {[%emt 0:59:41]} 26. b3 {[%emt 0:00:00]} R4c7 {[%emt 0:00:30]} 27. Bxa5 {[%emt 0:00:00]} Rc2+ 28. Ke3 {[%emt 0:01:30]} Ra2 {[%emt 0:01:00]} 29. Bd2 {[%emt 0:00:30]} Rcc2 {[%emt 0:00:00]} 30. Rd1 {[%emt 0:00:00]} Rcb2 {[%emt 0:00:00]} 31. Bb4 {[%emt 0:00:00]} Nc6 {[%emt 0:00:00]} 32. Kf4 {[%emt 0:00:00]} Nxb4 {[%emt 0:00:00]} 33. axb4 {[%emt 0:00:00]} Rxf2 {[%emt 0:00:00]} 34. Rc1 {[%emt 0:00:00]} Rxg2 {[%emt 0:00:00]} 35. Rc5 {[%emt 0:00:00]} Rg4+ {[%emt 0:00:00]} 36. Ke3 {[%emt 0:00:00]} Rb2 {[%emt 0:00:00]} 37. Rf1 {[%emt 0:00:00]} Rxb3+ {[%emt 0:00:00]} 38. Kd2 {[%emt 0:00:00]} Rxd4+ {[%emt 0:00:00]} 39. Ke2 {[%emt 0:00:00]} Rbxb4 {[%emt 0:00:00]} 40. Rc7 {[%emt 0:00:00]} Rf4 {[%emt 0:00:00]} 41. Rh1 {[%emt 0:08:33]} Rbe4+ {[%emt 0:00:00]} 42. Kd2 {[%emt 0:00:09]} Rxe5 {[%emt 0:00:00]} 43. Rc8 {[%emt 0:00:23]} Rxg5 {[%emt 0:00:00]} 44. Rg8 {[%emt 0:00:12]} b4 {[%emt 0:00:00]} 45. Ke3 {[%emt 0:00:10]} e5 {[%emt 0:00:00]} 46. Rh8 {[%emt 0:00:16]} b3 {[%emt 0:00:00]} 47. Rb8 {[%emt 0:00:10]} Rg3+ {[%emt 0:00:00]} 48. Ke2 {[%emt 0:00:12]} Ra4 {[%emt 0:00:00]} 49. Kf2 {[%emt 0:00:13]} h4 {[%emt 0:00:00]} 50. Rc1 {[%emt 0:00:22]} Ra2+ {[%emt 0:00:00]} 51. Kf1 {[%emt 0:00:06]} h3 {[%emt 0:00:00]} 52. Rh8 {[%emt 0:00:14]} h2 {[%emt 0:00:00]} 53. Rc6+ {[%emt 0:01:14]} Kg5 {[%emt 0:00:00]} 54. Rxh2 {[%emt 0:00:09]} Rxh2 {[%emt 0:00:00]} 55. Rc7 {[%emt 0:00:03]} b2 {[%emt 0:00:00]} 56. Rb7 {[%emt 0:00:16]} Rc3 {[%emt 0:00:00]} 57. Kg1 {[%emt 0:00:19]} Rd2 {[%emt 0:00:00]} 58. Rxb2 {[%emt 0:00:12]} Rxb2 {[%emt 0:00:00]} 59. Kf1 {[%emt 0:00:04]} d4 {[%emt 0:00:00]} 60. Ke1 {[%emt 0:00:03]} e4 {[%emt 0:00:00]} 61. Kf1 {[%emt 0:00:04]} f5 {[%emt 0:00:00]} 62. Ke1 {[%emt 0:00:06]} Kf6 {[%emt 0:00:00]} 63. Kf1 {[%emt 0:00:08]} g5 {[%emt 0:00:00]} 64. Ke1 {[%emt 0:00:12]} g4 {[%emt 0:00:00]} 65. Kf1 {[%emt 0:00:13]} f4 {[%emt 0:00:00]} 66. Ke1 {[%emt 0:00:04]} g3 {[%emt 0:00:00]} 67. Kf1 {[%emt 0:00:05]} f3 {[%emt 0:00:00]} 68. Ke1 {[%emt 0:00:07]} e3 {[%emt 0:00:00]} 69. Kf1 {[%emt 0:00:03]} d3 {[%emt 0:00:00]} 70. Ke1 {[%emt 0:00:06]} Ra2 {[%emt 0:00:00]} 71. Kf1 {[%emt 0:00:06]} Ra8 {[%emt 0:00:00]} 72. Ke1 {[%emt 0:00:06]} Rcc8 {[%emt 0:00:00]} 73. Kf1 {[%emt 0:00:07]} Rh8 {[%emt 0:00:00]} 74. Ke1 {[%emt 0:00:06]} g2 {[%emt 0:00:00]} 75. Kd1 {[%emt 0:00:05]} g1=B {[%emt 0:00:00]} 76. Ke1 {[%emt 0:00:06]} Bh2 {[%emt 0:00:00]} 77. Kd1 {[%emt 0:00:05]} Bd6 {[%emt 0:00:00]} 78. Ke1 {[%emt 0:00:06]} Bf8 {[%emt 0:00:00]} 79. Kd1 {[%emt 0:00:06]} f2 {[%emt 0:00:00]} 80. Kc1 {[%emt 0:00:04]} f1=B {[%emt 0:00:00]} 81. Kd1 {[%emt 0:00:05]} Bh3 {[%emt 0:00:00]} 82. Ke1 {[%emt 0:00:03]} Bc8 {[%emt 0:00:00]} 83. Kd1 {[%emt 0:00:06]} Ke7 {[%emt 0:00:00]} 84. Ke1 {[%emt 0:00:08]} Ke8 {[%emt 0:00:00]} 85. Kf1 {[%emt 0:00:05]} Bb7 {[%emt 0:00:00]} 86. Ke1 {[%emt 0:00:06]} Ra1# {[%emt 0:59:00]} 0-1

[Event "27th OIBM 2024"]
[Site "Gmund am Tegernsee"]
[Date "2024.10.29"]
[Round "4.8"]
[White "Hrebenshchykova, Yelyzaveta"]
[Black "Vogel, Roven"]
[Result "0-1"]
[ECO "D43"]
[WhiteElo "2311"]
[BlackElo "2559"]
[Annotator "RC"]
[PlyCount "80"]
[EventDate "2024.09.16"]
[EventType "swiss"]
[EventCountry "GER"]
[SourceTitle "playchess.com"]
[Source "ChessBase"]
[SourceQuality "1"]
[TimeControl "40/5400+30:1800+30"]

1. d4 {[%emt 0:00:06]} Nf6 {[%emt 0:00:26]} 2. Nf3 {[%emt 0:00:25]} d5 {[%emt 0:01:17]} 3. c4 {[%emt 0:01:00]} e6 {[%emt 0:00:10]} 4. Nc3 {[%emt 0:00:26]} c6 {[%emt 0:01:27]} 5. Bg5 {[%emt 0:01:20]} h6 {[%emt 0:03:37]} 6. Bxf6 {[%emt 0:01:48]} Qxf6 {[%emt 0:00:08]} 7. e3 {[%emt 0:00:04]} Nd7 {[%emt 0:01:50]} 8. Bd3 {[%emt 0:01:22]} g6 {[%emt 0:00:24]} 9. O-O {[%emt 0:01:47]} Bg7 {[%emt 0:00:09]} 10. e4 {[%emt 0:04:40]} dxc4 {[%emt 0:01:59]} 11. Bxc4 {[%emt 0:04:05]} O-O {[%emt 0:01:12]} 12. h3 {[%emt 0:05:30]} c5 {[%emt 0:05:58]} 13. dxc5 {[%emt 0:17:19]} Nxc5 {[%emt 0:01:00]} 14. Rc1 {[%emt 0:00:28]} Qe7 {[%emt 0:10:11]} 15. Qe2 {[%emt 0:09:30]} b6 {[%emt 0:02:57]} 16. Rfd1 {[%emt 0:08:47]} Bb7 {[%emt 0:02:55]} 17. b4 {[%emt 0:01:06]} Nd7 {[%emt 0:02:10]} 18. Nb5 {[%emt 0:02:50]} Rad8 {[%emt 0:01:45]} 19. a3 {[%emt 0:09:47]} Nf6 {[%emt 0:08:05]} 20. Bd3 {[%emt 0:02:34]} Ba8 {[%emt 0:07:34]} 21. Rc7 {[%emt 0:04:35]} Rd7 {[%emt 0:00:26]} 22. Rxd7 {[%emt 0:00:04]} Qxd7 {[%emt 0:00:29]} 23. Bb1 {[%emt 0:00:10]} Qb7 {[%emt 0:04:40]} 24. Nd6 {[%emt 0:03:03]} Qc7 {[%emt 0:01:33]} 25. Nb5 {[%emt 0:04:39]} Qb8 {[%emt 0:01:02]} 26. Nc3 {[%emt 0:02:21]} Rc8 {[%emt 0:05:04]} 27. Qe3 {[%emt 0:00:45]} Ng4 {[%emt 0:01:41]} 28. hxg4 {[%emt 0:00:05]} Rxc3 {[%emt 0:00:07]} 29. Rd3 {[%emt 0:00:07]} Qc7 {[%emt 0:06:05]} 30. Rxc3 {[%emt 0:00:41]} Qxc3 {[%emt 0:00:07]} 31. Qf4 {[%emt 0:12:47]} Bc6 {[%emt 0:00:56]} 32. Qb8+ {[%emt 0:00:05]} Kh7 {[%emt 0:00:33]} 33. Qd6 {[%emt 0:01:54]} Bb5 {[%emt 0:00:52]} 34. Kh2 {[%emt 0:00:22]} Qb3 {[%emt 0:03:28]} 35. Nd2 {[%emt 0:00:29]} Qxa3 {[%emt 0:00:08]} 36. e5 {[%emt 0:00:16]} Qc3 {[%emt 0:05:13]} 37. Nf3 {[%emt 0:00:52]} Be2 {[%emt 0:00:53]} 38. Nd4 {[%emt 0:00:35]} Bxg4 {[%emt 0:00:23]} 39. f3 {[%emt 0:00:38]} Qe1 {[%emt 0:00:42]} 40. Be4 {[%emt 0:00:27]} Bf5 {[%emt 0:00:21]} 0-1